fUSD/lending_fUSD_20250217
["ID","MTS","AMOUNT","RATE_DAILY","PERIOD"]
[353398391,1739815840033,-721.7,0.00013698,2]
[353398393,1739815840043,-500.0,0.00013698,2]
[353398395,1739815840053,-223.16735132,0.00013698,2]
[353398398,1739815840070,-276.83264868,0.00013698,2]
[353398400,1739815840079,-242.01224704,0.00013698,2]
[353398402,1739815840090,-500.0,0.00013698,2]
[353398404,1739815840099,-500.0,0.00013698,2]
[353398406,1739815840109,-500.0,0.00013698,2]
[353398409,1739815840119,-500.0,0.00013698,2]
[353398412,1739815840129,-500.0,0.00013698,2]
[353398414,1739815840139,-183.33728427,0.00013698,2]
[353398416,1739815840150,-297.54764814,0.00013698,2]
[353398419,1739815840162,-19.11506759,0.00013698,2]
[353398421,1739815840171,-422.63155141,0.00013698,2]
[353398423,1739815840183,-77.36844859,0.00013698,2]
[353398425,1739815840192,-500.0,0.00013698,2]
[353398427,1739815840201,-209.53281566,0.00013698,2]
[353398430,1739815840219,-290.46718434,0.00013698,2]
[353398432,1739815840228,-187.85241484,0.00013698,2]
[353398434,1739815840239,-312.14758516,0.00013698,2]
[353398436,1739815840248,-664.44,0.00013698,2]
[353398438,1739815840257,-500.0,0.00013698,2]
[353398440,1739815840269,-500.0,0.00013698,2]
[353398442,1739815840278,-500.0,0.00013698,2]
[353398444,1739815840287,-500.0,0.00013698,2]
[353398446,1739815840297,-500.0,0.00013698,2]
[353398448,1739815840307,-292.34041005,0.00013698,2]
[353398450,1739815840316,-527.83,0.00013698,2]
[353398452,1739815840325,-557.1,0.00013698,2]
[353398454,1739815840334,-500.0,0.00013698,2]
[353398456,1739815840343,-621.99320723,0.00013698,2]
[353398458,1739815840352,-500.0,0.00013698,2]
[353398460,1739815840361,-500.0,0.00013698,2]
[353398462,1739815840370,-500.0,0.00013698,2]
[353398464,1739815840379,-500.0,0.00013698,2]
[353398466,1739815840388,-500.0,0.00013698,2]
[353398468,1739815840398,-621.01,0.00013698,2]
[353398470,1739815840406,-218.77837239,0.00013698,2]
[353398472,1739815840419,-157.23487757,0.00013698,2]
[353398474,1739815840428,-342.76512243,0.00013698,2]
[353398514,1739815840819,-390.98687594,0.00013598,2]
[353398516,1739815840829,-266.26487757,0.00013698,2]
[353398518,1739815840838,-500.0,0.00013698,2]
[353398520,1739815840847,-171.40161721,0.00013698,2]
[353398524,1739815840879,-328.59838279,0.00013698,2]
[353398526,1739815840888,-500.0,0.00013698,2]
[353398529,1739815840897,-660.07,0.00013698,2]
[353398532,1739815840907,-500.0,0.00013698,2]
[353398535,1739815840916,-500.0,0.00013698,2]
[353398538,1739815840925,-500.0,0.00013698,2]
[353398541,1739815840935,-685.59,0.00013698,2]
[353398544,1739815840944,-500.0,0.00013698,2]
[353398547,1739815840953,-500.0,0.00013698,2]
[353398550,1739815840962,-529.48,0.00013698,2]
[353398553,1739815840971,-500.0,0.00013698,2]
[353398556,1739815840980,-500.0,0.00013698,2]
[353398559,1739815840989,-500.0,0.00013698,2]
[353398562,1739815840998,-888.0,0.00013698,2]
[353398564,1739815841008,-888.0,0.00013698,2]
[353398566,1739815841018,-888.0,0.00013698,2]
[353398568,1739815841027,-888.0,0.00013698,2]
[353398570,1739815841036,-500.0,0.00013698,2]
[353398572,1739815841046,-888.0,0.00013698,2]
[353398574,1739815841056,-888.0,0.00013698,2]
[353398576,1739815841065,-888.0,0.00013698,2]
[353398578,1739815841074,-888.0,0.00013698,2]
[353398580,1739815841083,-500.0,0.00013698,2]
[353398582,1739815841092,-888.0,0.00013698,2]
[353398584,1739815841101,-888.0,0.00013698,2]
[353398586,1739815841111,-888.0,0.00013698,2]
[353398588,1739815841120,-500.0,0.00013698,2]
[353398590,1739815841129,-500.0,0.00013698,2]
[353398592,1739815841139,-490.26999999,0.00013698,2]
[353398594,1739815841148,-500.0,0.00013698,2]
[353398595,1739815841157,-500.0,0.00013698,2]
[353398597,1739815841166,-879.53,0.00013698,2]
[353398600,1739815841179,-500.0,0.00013698,2]
[353398602,1739815841193,-500.0,0.00013698,2]
[353398605,1739815841206,-872.31,0.00013698,2]
[353398607,1739815841217,-500.0,0.00013698,2]
[353398609,1739815841228,-500.0,0.00013698,2]
[353398611,1739815841238,-500.0,0.00013698,2]
[353398613,1739815841251,-500.0,0.00013698,2]
[353398616,1739815841263,-500.0,0.00013698,2]
[353398618,1739815841275,-500.0,0.00013698,2]
[353398620,1739815841287,-680.21,0.00013698,2]
[353398622,1739815841300,-548.33,0.00013698,2]
[353398625,1739815841312,-500.0,0.00013698,2]
[353398627,1739815841326,-680.21,0.00013698,2]
[353398629,1739815841337,-680.21,0.00013698,2]
[353398631,1739815841349,-502.61,0.00013698,2]
[353398634,1739815841361,-884.35,0.00013698,2]
[353398636,1739815841371,-527.868759,0.00013698,2]
[353398638,1739815841382,-630.35,0.00013698,2]
[353398640,1739815841395,-1128.77,0.00013698,2]
[353398643,1739815841407,-500.0,0.00013698,2]
[353398644,1739815841419,-507.26,0.00013698,2]
[353398645,1739815841432,-500.0,0.00013698,2]
[353398646,1739815841444,-500.0,0.00013698,2]
[353398647,1739815841457,-500.0,0.00013698,2]
[353398648,1739815841469,-500.0,0.00013698,2]
[353398649,1739815841482,-500.0,0.00013698,2]
[353398650,1739815841494,-500.0,0.00013698,2]
[353398651,1739815841506,-500.0,0.00013698,2]
[353398653,1739815841520,-159.469364,0.00013698,2]
[353398656,1739815841532,-500.0,0.00013698,2]
[353398658,1739815841545,-500.0,0.00013698,2]
[353398660,1739815841556,-500.0,0.00013698,2]
[353398662,1739815841568,-500.0,0.00013698,2]
[353398664,1739815841579,-500.0,0.00013698,2]
[353398667,1739815841591,-500.0,0.00013698,2]
[353398669,1739815841604,-155.511863,0.00013698,2]
[353398672,1739815841617,-500.0,0.00013698,2]
[353398674,1739815841629,-689.9,0.00013698,2]
[353398676,1739815841640,-500.0,0.00013698,2]
[353398678,1739815841655,-500.0,0.00013698,2]
[353398681,1739815841666,-500.0,0.00013698,2]
[353398683,1739815841677,-332.93097159,0.00013698,2]
[353398685,1739815841687,-500.0,0.00013698,2]
[353398687,1739815841698,-500.0,0.00013698,2]
[353398689,1739815841710,-500.0,0.00013698,2]
[353398692,1739815841724,-500.0,0.00013698,2]
[353398694,1739815841736,-504.07,0.00013698,2]
[353398696,1739815841746,-500.0,0.00013698,2]
[353398698,1739815841756,-500.0,0.00013698,2]
[353398700,1739815841769,-500.0,0.00013698,2]
[353398702,1739815841781,-500.0,0.00013698,2]
[353398704,1739815841793,-500.0,0.00013698,2]
[353398707,1739815841806,-500.0,0.00013698,2]
[353398709,1739815841818,-500.0,0.00013698,2]
[353398711,1739815841828,-500.0,0.00013698,2]
[353398713,1739815841838,-500.0,0.00013698,2]
[353398715,1739815841848,-500.0,0.00013698,2]
[353398717,1739815841858,-610.26,0.00013698,2]
[353398719,1739815841869,-500.0,0.00013698,2]
[353398721,1739815841880,-500.0,0.00013698,2]
[353398723,1739815841890,-500.0,0.00013698,2]
[353398726,1739815841905,-500.0,0.00013698,2]
[353398728,1739815841916,-500.0,0.00013698,2]
[353398730,1739815841926,-465.181699,0.00013698,2]
[353398733,1739815841937,-500.0,0.00013698,2]
[353398735,1739815841948,-500.0,0.00013698,2]
[353398737,1739815841959,-500.0,0.00013698,2]
[353398739,1739815841969,-500.0,0.00013698,2]
[353398741,1739815841980,-513.82,0.00013698,2]
[353398743,1739815841993,-500.0,0.00013698,2]
[353398745,1739815842004,-500.0,0.00013698,2]
[353398748,1739815842017,-500.0,0.00013698,2]
[353398750,1739815842028,-500.0,0.00013698,2]
[353398752,1739815842039,-500.0,0.00013698,2]
[353398754,1739815842050,-500.0,0.00013698,2]
[353398756,1739815842061,-500.0,0.00013698,2]
[353398759,1739815842072,-500.0,0.00013698,2]
[353398761,1739815842083,-500.0,0.00013698,2]
[353398763,1739815842094,-500.0,0.00013698,2]
[353398765,1739815842104,-500.0,0.00013698,2]
[353398767,1739815842115,-500.0,0.00013698,2]
[353398770,1739815842128,-500.0,0.00013698,2]
[353398772,1739815842138,-500.0,0.00013698,2]
[353398774,1739815842150,-560.89,0.00013698,2]
[353398776,1739815842160,-500.0,0.00013698,2]
[353398778,1739815842172,-500.0,0.00013698,2]
[353398781,1739815842183,-500.0,0.00013698,2]
[353398783,1739815842194,-500.0,0.00013698,2]
[353398785,1739815842207,-500.0,0.00013698,2]
[353398787,1739815842218,-500.0,0.00013698,2]
[353398789,1739815842229,-500.0,0.00013698,2]
[353398792,1739815842240,-779.36,0.00013698,2]
[353398794,1739815842251,-500.0,0.00013698,2]
[353398796,1739815842262,-506.68085639,0.00013698,2]
[353398798,1739815842274,-500.0,0.00013698,2]
[353398800,1739815842285,-513.20762086,0.00013698,2]
[353398802,1739815842296,-500.0,0.00013698,2]
[353398804,1739815842307,-500.0,0.00013698,2]
[353398806,1739815842317,-511.33,0.00013698,2]
[353398808,1739815842328,-500.0,0.00013698,2]
[353398811,1739815842339,-500.0,0.00013698,2]
[353398813,1739815842350,-500.0,0.00013698,2]
[353398815,1739815842361,-514.5738102,0.00013698,2]
[353398817,1739815842372,-517.30485329,0.00013698,2]
[353398819,1739815842383,-500.0,0.00013698,2]
[353398821,1739815842394,-500.0,0.00013698,2]
[353398824,1739815842405,-500.0,0.00013698,2]
[353398826,1739815842417,-500.0,0.00013698,2]
[353398828,1739815842428,-500.0,0.00013698,2]
[353398830,1739815842439,-723.45,0.00013698,2]
[353398832,1739815842450,-500.0,0.00013698,2]
[353398835,1739815842461,-500.0,0.00013698,2]
[353398837,1739815842472,-500.0,0.00013698,2]
[353398839,1739815842482,-826.0,0.00013698,2]
[353398841,1739815842494,-500.0,0.00013698,2]
[353398843,1739815842505,-500.0,0.00013698,2]
[353398845,1739815842518,-500.0,0.00013698,2]
[353398846,1739815842529,-500.0,0.00013698,2]
[353398847,1739815842540,-500.0,0.00013698,2]
[353398848,1739815842551,-500.0,0.00013698,2]
[353398849,1739815842563,-500.0,0.00013698,2]
[353398850,1739815842574,-500.0,0.00013698,2]
[353398851,1739815842585,-500.0,0.00013698,2]
[353398852,1739815842596,-500.0,0.00013698,2]
[353398853,1739815842607,-500.0,0.00013698,2]
[353398854,1739815842619,-500.0,0.00013698,2]
[353398856,1739815842630,-500.0,0.00013698,2]
[353398858,1739815842642,-182.042611,0.00013698,2]
[353398860,1739815842655,-500.0,0.00013698,2]
[353398863,1739815842666,-551.82,0.00013698,2]
[353398865,1739815842677,-500.0,0.00013698,2]
[353398867,1739815842688,-500.0,0.00013698,2]
[353398869,1739815842699,-775.48,0.00013698,2]
[353398872,1739815842710,-500.0,0.00013698,2]
[353398874,1739815842722,-500.0,0.00013698,2]
[353398876,1739815842733,-500.0,0.00013698,2]
[353398878,1739815842745,-676.02,0.00013698,2]
[353398879,1739815842756,-500.0,0.00013698,2]
[353398880,1739815842768,-500.0,0.00013698,2]
[353398881,1739815842779,-500.0,0.00013698,2]
[353398882,1739815842791,-500.0,0.00013698,2]
[353398883,1739815842802,-500.0,0.00013698,2]
[353398884,1739815842812,-500.0,0.00013698,2]
[353398885,1739815842824,-799.13,0.00013698,2]
[353398886,1739815842837,-500.0,0.00013698,2]
[353398887,1739815842847,-500.0,0.00013698,2]
[353398888,1739815842858,-500.0,0.00013698,2]
[353398889,1739815842869,-500.0,0.00013698,2]
[353398890,1739815842880,-697.45,0.00013698,2]
[353398891,1739815842891,-500.0,0.00013698,2]
[353398892,1739815842902,-527.52,0.00013698,2]
[353398893,1739815842914,-500.0,0.00013698,2]
[353398894,1739815842924,-634.13,0.00013698,2]
[353398895,1739815842936,-500.0,0.00013698,2]
[353398896,1739815842947,-500.0,0.00013698,2]
[353398897,1739815842958,-500.0,0.00013698,2]
[353398898,1739815842968,-500.84408562,0.00013698,2]
[353398900,1739815842979,-500.0,0.00013698,2]
[353398902,1739815842990,-500.0,0.00013698,2]
[353398904,1739815843001,-1087.97,0.00013698,2]
[353398906,1739815843012,-500.0,0.00013698,2]
[353398910,1739815843025,-781.6,0.00013698,2]
[353398912,1739815843036,-500.0,0.00013698,2]
[353398914,1739815843047,-500.0,0.00013698,2]
[353398916,1739815843059,-180.896512,0.00013698,2]
[353398918,1739815843070,-500.0,0.00013698,2]
[353398921,1739815843080,-500.0,0.00013698,2]
[353398924,1739815843091,-484.66452587,0.00013698,2]
[353398927,1739815843102,-642.47,0.00013698,2]
[353398930,1739815843113,-500.0,0.00013698,2]
[353398931,1739815843124,-500.0,0.00013698,2]
[353398932,1739815843134,-500.0,0.00013698,2]
[353398933,1739815843145,-500.0,0.00013698,2]
[353398934,1739815843155,-500.0,0.00013698,2]
[353398935,1739815843166,-500.0,0.00013698,2]
[353398936,1739815843177,-500.0,0.00013698,2]
[353398937,1739815843188,-500.0,0.00013698,2]
[353398938,1739815843200,-500.0,0.00013698,2]
[353398939,1739815843211,-500.0,0.00013698,2]
[353398940,1739815843221,-500.0,0.00013698,2]
[353398941,1739815843232,-500.0,0.00013698,2]
[353398942,1739815843244,-500.0,0.00013698,2]
[353398943,1739815843255,-646.88,0.00013698,2]
[353398944,1739815843269,-500.0,0.00013698,2]
[353398945,1739815843279,-500.0,0.00013698,2]
[353398946,1739815843291,-500.0,0.00013698,2]
[353398947,1739815843303,-627.97,0.00013698,2]
[353398948,1739815843316,-500.0,0.00013698,2]
[353398949,1739815843328,-877.35,0.00013698,2]
[353398950,1739815843339,-500.0,0.00013698,2]
[353398951,1739815843351,-500.0,0.00013698,2]
[353398952,1739815843362,-500.0,0.00013698,2]
[353398953,1739815843373,-500.0,0.00013698,2]
[353398954,1739815843384,-500.0,0.00013698,2]
[353398955,1739815843395,-500.0,0.00013698,2]
[353398956,1739815843406,-500.0,0.00013698,2]
[353398957,1739815843417,-164.12494597,0.00013698,2]
[353398958,1739815843428,-501.93,0.00013698,2]
[353398959,1739815843438,-500.0,0.00013698,2]
[353398960,1739815843449,-2021.69,0.00013698,2]
[353398961,1739815843460,-500.0,0.00013698,2]
[353398962,1739815843470,-500.0,0.00013698,2]
[353398963,1739815843482,-500.0,0.00013698,2]
[353398964,1739815843492,-500.0,0.00013698,2]
[353398965,1739815843503,-500.0,0.00013698,2]
[353398967,1739815843516,-500.0,0.00013698,2]
[353398969,1739815843528,-500.0,0.00013698,2]
[353398971,1739815843539,-804.35,0.00013698,2]
[353398973,1739815843550,-507.11867569,0.00013698,2]
[353398974,1739815843561,-500.0,0.00013698,2]
[353398976,1739815843572,-637.43,0.00013698,2]
[353398977,1739815843583,-180.896505,0.00013698,2]
[353398978,1739815843594,-1178.4,0.00013698,2]
[353398979,1739815843605,-500.0,0.00013698,2]
[353398980,1739815843616,-500.0,0.00013698,2]
[353398981,1739815843626,-2424.8,0.00013698,2]
[353398982,1739815843637,-713.08,0.00013698,2]
[353398983,1739815843648,-902.8,0.00013698,2]
[353398985,1739815843661,-500.0,0.00013698,2]
[353398987,1739815843671,-500.0,0.00013698,2]
[353398989,1739815843680,-500.0,0.00013698,2]
[353398991,1739815843691,-379.79729002,0.00013698,2]
[353398992,1739815843700,-1659.27,0.00013698,2]
[353398993,1739815844023,-854.28,0.00013698,2]
[353398994,1739815844042,-500.0,0.00013698,2]
[353398995,1739815844065,-772.93,0.00013698,2]
[353398996,1739815844078,-707.88,0.00013698,2]
[353398997,1739815844088,-500.0,0.00013698,2]
[353398998,1739815844100,-1197.12,0.00013698,2]
[353398999,1739815844109,-500.0,0.00013698,2]
[353399000,1739815844119,-152.258352,0.00013698,2]
[353399001,1739815844129,-1865.74,0.00013698,2]
[353399002,1739815844138,-500.0,0.00013698,2]
[353399003,1739815844149,-500.0,0.00013698,2]
[353399004,1739815844159,-953.23,0.00013698,2]
[353399005,1739815844168,-500.0,0.00013698,2]
[353399006,1739815844178,-500.0,0.00013698,2]
[353399007,1739815844187,-500.0,0.00013698,2]
[353399008,1739815844197,-500.0,0.00013698,2]
[353399009,1739815844207,-500.0,0.00013698,2]
[353399010,1739815844217,-565.36,0.00013698,2]
[353399011,1739815844227,-500.0,0.00013698,2]
[353399012,1739815844237,-2885.55,0.00013698,2]
[353399013,1739815844246,-500.0,0.00013698,2]
[353399014,1739815844256,-973.56,0.00013698,2]
[353399015,1739815844267,-500.0,0.00013698,2]
[353399016,1739815844277,-500.0,0.00013698,2]
[353399017,1739815844286,-500.0,0.00013698,2]
[353399018,1739815844296,-501.07216961,0.00013698,2]
[353399019,1739815844306,-803.15,0.00013698,2]
[353399020,1739815844315,-1385.68,0.00013698,2]
[353399021,1739815844325,-974.48,0.00013698,2]
[353399022,1739815844334,-502.4275607,0.00013698,2]
[353399023,1739815844343,-816.48,0.00013698,2]
[353399024,1739815844352,-500.0,0.00013698,2]
[353399025,1739815844362,-922.79,0.00013698,2]
[353399026,1739815844371,-585.62,0.00013698,2]
[353399027,1739815844381,-500.0,0.00013698,2]
[353399028,1739815844390,-500.0,0.00013698,2]
[353399029,1739815844400,-3073.59,0.00013698,2]
[353399030,1739815844411,-597.4,0.00013698,2]
[353399031,1739815844420,-500.0,0.00013698,2]
[353399032,1739815844430,-1321.54,0.00013698,2]
[353399033,1739815844439,-1131.49,0.00013698,2]
[353399034,1739815844448,-500.0,0.00013698,2]
[353399035,1739815844458,-500.0,0.00013698,2]
[353399036,1739815844467,-500.0,0.00013698,2]
[353399037,1739815844477,-163.61272562,0.00013698,2]
[353399038,1739815844486,-500.0,0.00013698,2]
[353399039,1739815844495,-500.0,0.00013698,2]
[353399040,1739815844504,-500.0,0.00013698,2]
[353399041,1739815844514,-1395.94,0.00013698,2]
[353399042,1739815844525,-500.0,0.00013698,2]
[353399043,1739815844535,-1265.98,0.00013698,2]
[353399044,1739815844545,-500.0,0.00013698,2]
[353399045,1739815844554,-500.0,0.00013698,2]
[353399046,1739815844564,-180.896505,0.00013698,2]
[353399047,1739815844573,-500.0,0.00013698,2]
[353399048,1739815844583,-500.0,0.00013698,2]
[353399049,1739815844592,-500.0,0.00013698,2]
[353399050,1739815844601,-1422.73,0.00013698,2]
[353399051,1739815844610,-500.0,0.00013698,2]
[353399052,1739815844620,-500.0,0.00013698,2]
[353399053,1739815844630,-1473.58,0.00013698,2]
[353399054,1739815844639,-1479.13,0.00013698,2]
[353399055,1739815844650,-500.0,0.00013698,2]
[353399056,1739815844663,-500.0,0.00013698,2]
[353399057,1739815844672,-500.0,0.00013698,2]
[353399058,1739815844682,-500.0,0.00013698,2]
[353399059,1739815844693,-1202.26,0.00013698,2]
[353399060,1739815844703,-500.0,0.00013698,2]
[353399061,1739815844712,-182.042606,0.00013698,2]
[353399062,1739815844721,-1748.85,0.00013698,2]
[353399063,1739815844731,-500.0,0.00013698,2]
[353399064,1739815844741,-500.0,0.00013698,2]
[353399065,1739815844751,-1547.54,0.00013698,2]
[353399066,1739815844761,-2001.49,0.00013698,2]
[353399067,1739815844773,-500.0,0.00013698,2]
[353399068,1739815844782,-509.15875029,0.00013698,2]
[353399069,1739815844792,-500.0,0.00013698,2]
[353399070,1739815844802,-1175.35,0.00013698,2]
[353399071,1739815844812,-2574.83,0.00013698,2]
[353399072,1739815844821,-500.0,0.00013698,2]
[353399073,1739815844831,-500.0,0.00013698,2]
[353399074,1739815844840,-1101.2,0.00013698,2]
[353399075,1739815844850,-500.0,0.00013698,2]
[353399076,1739815844859,-534.30555416,0.00013698,2]
[353399077,1739815844868,-500.0,0.00013698,2]
[353399078,1739815844878,-500.0,0.00013698,2]
[353399079,1739815844886,-1324.81,0.00013698,2]
[353399080,1739815844896,-1077.14,0.00013698,2]
[353399081,1739815844906,-1691.48,0.00013698,2]
[353399082,1739815844917,-500.0,0.00013698,2]
[353399083,1739815844928,-1466.29,0.00013698,2]
[353399084,1739815844938,-525.21,0.00013698,2]
[353399085,1739815844947,-1601.82,0.00013698,2]
[353399086,1739815844956,-1698.43,0.00013698,2]
[353399087,1739815844965,-500.0,0.00013698,2]
[353399088,1739815844975,-500.0,0.00013698,2]
[353399089,1739815844985,-500.0,0.00013698,2]
[353399090,1739815844995,-500.0,0.00013698,2]
[353399091,1739815845005,-500.0,0.00013698,2]
[353399092,1739815845015,-1051.07,0.00013698,2]
[353399093,1739815845025,-1893.07,0.00013698,2]
[353399094,1739815845035,-1434.34,0.00013698,2]
[353399095,1739815845044,-500.0,0.00013698,2]
[353399096,1739815845053,-1559.87,0.00013698,2]
[353399097,1739815845062,-4247.72,0.00013698,2]
[353399098,1739815845071,-500.0,0.00013698,2]
[353399099,1739815845080,-500.0,0.00013698,2]
[353399100,1739815845090,-500.0,0.00013698,2]
[353399101,1739815845099,-697.24,0.00013698,2]
[353399102,1739815845109,-500.0,0.00013698,2]
[353399103,1739815845118,-500.0,0.00013698,2]
[353399104,1739815845127,-500.0,0.00013698,2]
[353399105,1739815845136,-500.0,0.00013698,2]
[353399106,1739815845145,-1490.44,0.00013698,2]
[353399107,1739815845154,-500.0,0.00013698,2]
[353399108,1739815845163,-500.0,0.00013698,2]
[353399109,1739815845173,-2043.08,0.00013698,2]
[353399110,1739815845183,-1242.96,0.00013698,2]
[353399111,1739815845192,-794.8,0.00013698,2]
[353399112,1739815845202,-500.0,0.00013698,2]
[353399113,1739815845211,-500.0,0.00013698,2]
[353399114,1739815845220,-500.0,0.00013698,2]
[353399115,1739815845230,-1947.34,0.00013698,2]
[353399116,1739815845239,-500.0,0.00013698,2]
[353399117,1739815845249,-1505.04,0.00013698,2]
[353399118,1739815845259,-1445.54,0.00013698,2]
[353399119,1739815845268,-500.0,0.00013698,2]
[353399120,1739815845278,-500.0,0.00013698,2]
[353399121,1739815845287,-1114.18,0.00013698,2]
[353399122,1739815845297,-2020.29,0.00013698,2]
[353399123,1739815845306,-845.62,0.00013698,2]
[353399124,1739815845316,-500.0,0.00013698,2]
[353399125,1739815845325,-749.69,0.00013698,2]
[353399126,1739815845334,-500.0,0.00013698,2]
[353399127,1739815845343,-500.0,0.00013698,2]
[353399128,1739815845353,-776.01,0.00013698,2]
[353399129,1739815845363,-500.0,0.00013698,2]
[353399130,1739815845372,-832.24,0.00013698,2]
[353399131,1739815845381,-182.042604,0.00013698,2]
[353399132,1739815845390,-504.07,0.00013698,2]
[353399133,1739815845400,-500.0,0.00013698,2]
[353399134,1739815845410,-500.0,0.00013698,2]
[353399135,1739815845419,-500.0,0.00013698,2]
[353399136,1739815845429,-500.0,0.00013698,2]
[353399137,1739815845438,-3601.82,0.00013698,2]
[353399138,1739815845448,-1526.53,0.00013698,2]
[353399139,1739815845458,-500.0,0.00013698,2]
[353399140,1739815845467,-1081.38,0.00013698,2]
[353399141,1739815845477,-500.0,0.00013698,2]
[353399142,1739815845487,-1272.95,0.00013698,2]
[353399143,1739815845496,-704.58,0.00013698,2]
[353399144,1739815845506,-500.0,0.00013698,2]
[353399145,1739815845516,-500.0,0.00013698,2]
[353399146,1739815845526,-691.58,0.00013698,2]
[353399147,1739815845536,-500.0,0.00013698,2]
[353399148,1739815845546,-596.73,0.00013698,2]
[353399149,1739815845555,-500.0,0.00013698,2]
[353399150,1739815845564,-992.78,0.00013698,2]
[353399151,1739815845574,-500.0,0.00013698,2]
[353399152,1739815845583,-2407.6,0.00013698,2]
[353399153,1739815845592,-500.0,0.00013698,2]
[353399154,1739815845601,-1300.23,0.00013698,2]
[353399155,1739815845612,-500.0,0.00013698,2]
[353399156,1739815845622,-1392.59,0.00013698,2]
[353399157,1739815845632,-2009.2,0.00013698,2]
[353399158,1739815845641,-1615.34,0.00013698,2]
[353399159,1739815845651,-553.59210346,0.00013698,2]
[353399160,1739815845664,-500.0,0.00013698,2]
[353399161,1739815845673,-500.0,0.00013698,2]
[353399162,1739815845683,-500.0,0.00013698,2]
[353399163,1739815845694,-500.0,0.00013698,2]
[353399164,1739815845703,-480.03733912,0.00013698,2]
[353399165,1739815845714,-535.37,0.00013698,2]
[353399166,1739815845723,-1060.0,0.00013698,2]
[353399167,1739815845733,-500.0,0.00013698,2]
[353399168,1739815845744,-512.19,0.00013698,2]
[353399169,1739815845753,-1404.72,0.00013698,2]
[353399170,1739815845762,-500.0,0.00013698,2]
[353399171,1739815845774,-500.0,0.00013698,2]
[353399172,1739815845783,-500.0,0.00013698,2]
[353399173,1739815845792,-2087.18,0.00013698,2]
[353399174,1739815845802,-799.51,0.00013698,2]
[353399175,1739815845811,-500.0,0.00013698,2]
[353399177,1739815845821,-500.0,0.00013698,2]
[353399179,1739815845830,-1446.79,0.00013698,2]
[353399181,1739815845840,-500.0,0.00013698,2]
[353399182,1739815845849,-846.61,0.00013698,2]
[353399183,1739815845858,-500.0,0.00013698,2]
[353399184,1739815845867,-513.82347748,0.00013698,2]
[353399185,1739815845876,-713.92,0.00013698,2]
[353399186,1739815845885,-180.896505,0.00013698,2]
[353399187,1739815845895,-2283.81,0.00013698,2]
[353399188,1739815845905,-500.0,0.00013698,2]
[353399189,1739815845915,-500.0,0.00013698,2]
[353399191,1739815845925,-500.0,0.00013698,2]
[353399192,1739815845934,-1112.79,0.00013698,2]
[353399193,1739815845945,-1608.4,0.00013698,2]
[353399195,1739815845954,-500.0,0.00013698,2]
[353399196,1739815845966,-500.0,0.00013698,2]
[353399198,1739815845976,-532.44,0.00013698,2]
[353399199,1739815845985,-1167.91,0.00013698,2]